fUSD/lending_fUSD_20260515
["ID","MTS","AMOUNT","RATE_DAILY","PERIOD"]
[422304780,1778807444000,-152.0,0.00020733,4]
[422304778,1778807444000,-22954.00210992,0.000207,2]
[422304787,1778807444000,-300.0,0.00020999,2]
[422304784,1778807444000,-2884.75459676,0.00020738,2]
[422304777,1778807444000,-300.0,0.00020699,2]
[422304776,1778807444000,-497.45,0.0002068,2]
[422304782,1778807444000,-290.39862941,0.00020738,2]
[422304786,1778807444000,-500.0,0.00020978,2]
[422304768,1778807444000,-2458.5,0.00020381,2]
[422304818,1778807444000,-200.0,0.00021286,2]
[422304800,1778807444000,-906.0,0.00021,2]
[422304813,1778807444000,-2000.0,0.00021112,2]
[422304847,1778807444000,-1450.0,0.00021608,2]
[422304817,1778807444000,-912.45,0.00021273,2]
[422304844,1778807444000,-1450.0,0.00021608,2]
[422304855,1778807444000,-1150.0,0.00021762,2]
[422304848,1778807444000,-1431.0,0.00021608,2]
[422304850,1778807444000,-1150.0,0.00021762,2]
[422304851,1778807444000,-1150.0,0.00021762,2]
[422304853,1778807444000,-1150.0,0.00021762,2]
[422304849,1778807444000,-164.58286259,0.00021761,2]
[422304852,1778807444000,-1150.0,0.00021762,2]
[422304854,1778807444000,-1150.0,0.00021762,2]
[422304845,1778807444000,-1450.0,0.00021608,2]
[422304856,1778807444000,-1150.0,0.00021762,2]
[422304865,1778807444000,-2000.0,0.00021762,2]
[422304864,1778807444000,-2000.0,0.00021762,2]
[422304863,1778807444000,-2000.0,0.00021762,2]
[422304866,1778807444000,-2000.0,0.00021762,2]
[422304858,1778807444000,-1150.0,0.00021762,2]
[422304861,1778807444000,-2000.0,0.00021762,2]
[422304859,1778807444000,-742.0,0.00021762,2]
[422304860,1778807444000,-2000.0,0.00021762,2]
[422304862,1778807444000,-2000.0,0.00021762,2]
[422304868,1778807444000,-1562.81472104,0.00021762,2]
[422304867,1778807444000,-2000.0,0.00021762,2]
[422304857,1778807444000,-1150.0,0.00021762,2]
[422304843,1778807444000,-1450.0,0.00021608,2]
[422304846,1778807444000,-1450.0,0.00021608,2]
[422304838,1778807444000,-500.0,0.00021607,2]
[422304819,1778807444000,-301.1433787,0.00021286,2]
[422304814,1778807444000,-5530.0,0.000212,5]
[422304820,1778807444000,-270.0455652,0.00021286,2]
[422304821,1778807444000,-2991.49051684,0.00021286,2]
[422304815,1778807444000,-601.84,0.00021205,2]
[422304816,1778807444000,-3827.98,0.00021273,2]
[422304829,1778807444000,-2000.0,0.0002155,2]
[422304830,1778807444000,-2000.0,0.0002155,2]
[422304841,1778807444000,-1450.0,0.00021608,2]
[422304823,1778807444000,-322.6505701,0.00021322,30]
[422304826,1778807444000,-9902.87572427,0.000215,2]
[422304824,1778807444000,-166.88822591,0.00021322,30]
[422304827,1778807444000,-152.0,0.00021516,5]
[422304822,1778807444000,-248.34557429,0.00021322,30]
[422304839,1778807444000,-1450.0,0.00021608,2]
[422304825,1778807444000,-497.46929577,0.00021359,2]
[422304834,1778807444000,-2000.0,0.00021576,2]
[422304842,1778807444000,-1450.0,0.00021608,2]
[422304835,1778807444000,-2000.0,0.00021576,2]
[422304837,1778807444000,-500.0,0.0002158,2]
[422304836,1778807444000,-2000.0,0.00021576,2]
[422304833,1778807444000,-233.51889341,0.00021555,2]
[422304828,1778807444000,-2000.0,0.0002155,2]
[422304831,1778807444000,-2000.0,0.0002155,2]
[422304832,1778807444000,-2000.0,0.0002155,2]
[422304840,1778807444000,-1450.0,0.00021608,2]
[422304870,1778807445000,-620.10108334,0.00021762,2]
[422304869,1778807445000,-437.18527896,0.00021762,2]
[422304874,1778807445000,-474.0,0.00021802,2]
[422304873,1778807445000,-500.0,0.00021802,2]
[422304872,1778807445000,-1379.89891666,0.00021762,2]
[422304876,1778807445000,-5000.0,0.00021918,2]
[422304880,1778807445000,-150.0,0.00021918,2]
[422304875,1778807445000,-280.03725112,0.00021834,2]
[422304879,1778807445000,-150.0,0.00021918,2]
[422304884,1778807445000,-150.0,0.00021918,2]
[422304878,1778807445000,-1456.84534706,0.00021918,2]
[422304881,1778807445000,-150.0,0.00021918,2]
[422304877,1778807445000,-150.0,0.00021918,2]
[422304883,1778807445000,-150.0,0.00021918,2]
[422304885,1778807445000,-150.0,0.00021918,2]
[422304888,1778807445000,-162.85059046,0.00021918,2]
[422304887,1778807445000,-150.0,0.00021918,2]
[422304886,1778807445000,-150.0,0.00021918,2]
[422304890,1778807445000,-350.0,0.00021969,2]
[422304889,1778807445000,-350.0,0.00021969,2]
[422304882,1778807445000,-150.0,0.00021918,2]
[422304927,1778807446000,-2000.0,0.00022192,2]
[422304953,1778807446000,-644.79446246,0.00022927,2]
[422304924,1778807446000,-2000.0,0.00022192,2]
[422304930,1778807446000,-302.0,0.000223,30]
[422304929,1778807446000,-152.0,0.00022299,6]
[422304928,1778807446000,-500.0,0.00022256,2]
[422304926,1778807446000,-2000.0,0.00022192,2]
[422304922,1778807446000,-2000.0,0.00022192,2]
[422304932,1778807446000,-2458.5,0.00022353,2]
[422304933,1778807446000,-290.39862941,0.00022382,2]
[422304925,1778807446000,-2000.0,0.00022192,2]
[422304935,1778807446000,-328.22543163,0.00022407,2]
[422304897,1778807446000,-522.0,0.00022,2]
[422304934,1778807446000,-328.22543164,0.00022407,2]
[422304940,1778807446000,-35995.69229312,0.000225,2]
[422304944,1778807446000,-150.0,0.00022558,2]
[422304923,1778807446000,-2000.0,0.00022192,2]
[422304941,1778807446000,-150.0,0.00022558,2]
[422304937,1778807446000,-290.24,0.00022466,2]
[422304939,1778807446000,-1843.27,0.00022466,2]
[422304938,1778807446000,-751.62,0.00022466,2]
[422304942,1778807446000,-150.0,0.00022558,2]
[422304943,1778807446000,-150.0,0.00022558,2]
[422304946,1778807446000,-150.0,0.00022558,2]
[422304950,1778807446000,-171.33427658,0.00022895,15]
[422304947,1778807446000,-255.0,0.00022558,2]
[422304945,1778807446000,-150.0,0.00022558,2]
[422304914,1778807446000,-1253.79,0.00022104,2]
[422304917,1778807446000,-280.0,0.00022191,2]
[422304919,1778807446000,-2000.0,0.00022192,2]
[422304891,1778807446000,-350.0,0.00021969,2]
[422304895,1778807446000,-718.0,0.00022,2]
[422304893,1778807446000,-11709.58328555,0.00022,4]
[422304896,1778807446000,-276.0,0.00022,2]
[422304894,1778807446000,-450.0,0.00022,2]
[422304892,1778807446000,-211.0,0.00021969,2]
[422304899,1778807446000,-4191.0,0.00022,2]
[422304904,1778807446000,-301.0,0.00022,2]
[422304898,1778807446000,-3245.0,0.00022,2]
[422304909,1778807446000,-1253.78,0.000221,2]
[422304900,1778807446000,-396.0,0.00022,2]
[422304902,1778807446000,-906.0,0.00022,2]
[422304910,1778807446000,-1253.78,0.000221,2]
[422304908,1778807446000,-191.68501,0.00022,3]
[422304905,1778807446000,-485.0,0.00022,2]
[422304903,1778807446000,-476.0,0.00022,2]
[422304901,1778807446000,-286.0,0.00022,2]
[422304907,1778807446000,-165.78,0.00022,2]
[422304911,1778807446000,-1253.78,0.00022102,2]
[422304921,1778807446000,-2000.0,0.00022192,2]
[422304916,1778807446000,-1253.78,0.00022104,2]
[422304920,1778807446000,-2000.0,0.00022192,2]
[422304913,1778807446000,-1253.78,0.00022102,2]
[422304915,1778807446000,-1253.78,0.00022104,2]
[422304912,1778807446000,-1253.78,0.00022102,2]
[422304918,1778807446000,-2000.0,0.00022192,2]
[422304906,1778807446000,-1953.0,0.00022,2]
[422304954,1778807446000,-747.8093786,0.00022927,2]
[422304931,1778807446000,-1327.49,0.000223,7]
[422304952,1778807446000,-161.9878218,0.00022924,2]
[422305011,1778807446000,-154.0,0.00023,30]
[422304996,1778807446000,-154.0,0.00023,30]
[422305014,1778807446000,-154.0,0.00023,30]
[422305009,1778807446000,-154.0,0.00023,30]
[422305016,1778807446000,-154.0,0.00023,30]
[422305018,1778807446000,-154.0,0.00023,30]
[422305001,1778807446000,-154.0,0.00023,30]
[422305003,1778807446000,-154.0,0.00023,30]
[422305004,1778807446000,-154.0,0.00023,30]
[422304998,1778807446000,-154.0,0.00023,30]
[422305020,1778807446000,-154.0,0.00023,30]
[422305023,1778807446000,-154.0,0.00023,30]
[422305027,1778807446000,-154.0,0.00023,30]
[422305037,1778807446000,-154.0,0.00023,30]
[422305025,1778807446000,-154.0,0.00023,30]
[422305033,1778807446000,-154.0,0.00023,30]
[422305029,1778807446000,-154.0,0.00023,30]
[422305035,1778807446000,-154.0,0.00023,30]
[422305031,1778807446000,-154.0,0.00023,30]
[422305041,1778807446000,-1953.0,0.00023,2]
[422305039,1778807446000,-154.0,0.00023,30]
[422305043,1778807446000,-162.0,0.00023,30]
[422305047,1778807446000,-159.0,0.00023,30]
[422305045,1778807446000,-159.0,0.00023,30]
[422305048,1778807446000,-159.0,0.00023,30]
[422305049,1778807446000,-159.0,0.00023,30]
[422304955,1778807446000,-301.1433787,0.0002293,2]
[422305013,1778807446000,-154.0,0.00023,30]
[422305007,1778807446000,-154.0,0.00023,30]
[422304936,1778807446000,-328.22543163,0.00022407,2]
[422304981,1778807446000,-166.0,0.00023,30]
[422305012,1778807446000,-154.0,0.00023,30]
[422304956,1778807446000,-4754.33510122,0.00023,2]
[422304949,1778807446000,-161.10290385,0.00022889,5]
[422304948,1778807446000,-225.12847184,0.00022833,21]
[422304960,1778807446000,-208.4634798,0.00023,117]
[422304959,1778807446000,-3373.91134611,0.00023,2]
[422304963,1778807446000,-522.0,0.00023,2]
[422304957,1778807446000,-1000.0,0.00023,14]
[422304965,1778807446000,-4191.0,0.00023,2]
[422304962,1778807446000,-276.0,0.00023,2]
[422304958,1778807446000,-311277.04236771,0.00023,2]
[422304961,1778807446000,-718.0,0.00023,2]
[422304969,1778807446000,-906.0,0.00023,2]
[422304951,1778807446000,-500.0,0.00022923,2]
[422304966,1778807446000,-396.0,0.00023,2]
[422304985,1778807446000,-154.0,0.00023,30]
[422304983,1778807446000,-154.0,0.00023,30]
[422304977,1778807446000,-200.0,0.00023,30]
[422304967,1778807446000,-286.0,0.00023,2]
[422304989,1778807446000,-154.0,0.00023,30]
[422304992,1778807446000,-154.0,0.00023,30]
[422304975,1778807446000,-301.0,0.00023,2]
[422304979,1778807446000,-485.0,0.00023,2]
[422304994,1778807446000,-154.0,0.00023,30]
[422304973,1778807446000,-476.0,0.00023,2]
[422304971,1778807446000,-200.0,0.00023,30]
[422304964,1778807446000,-3245.0,0.00023,2]
[422304987,1778807446000,-154.0,0.00023,30]
[422305094,1778807447000,-1253.87965228,0.00024,2]
[422305097,1778807447000,-276.0,0.00024,2]
[422305092,1778807447000,-10593.2705128,0.00024,14]
[422305093,1778807447000,-3600.0,0.00024,2]
[422305091,1778807447000,-1036.98591685,0.00024,2]
[422305084,1778807447000,-150.0,0.00023671,2]
[422305087,1778807447000,-685.21027262,0.00023827,2]
[422305090,1778807447000,-300.0,0.00023999,2]
[422305098,1778807447000,-522.0,0.00024,2]
[422305088,1778807447000,-152.0,0.00023865,8]
[422305096,1778807447000,-718.0,0.00024,2]
[422305089,1778807447000,-2279.0,0.00023905,7]
[422305099,1778807447000,-3245.0,0.00024,2]
[422305108,1778807447000,-485.0,0.00024,2]
[422305102,1778807447000,-286.0,0.00024,2]
[422305101,1778807447000,-396.0,0.00024,2]
[422305104,1778807447000,-476.0,0.00024,2]
[422305100,1778807447000,-4191.0,0.00024,2]
[422305105,1778807447000,-151.0,0.00024,2]
[422305110,1778807447000,-1953.0,0.00024,2]
[422305106,1778807447000,-301.0,0.00024,2]
[422305107,1778807447000,-151.0,0.00024,2]
[422305111,1778807447000,-300.0,0.00024078,2]
[422305109,1778807447000,-151.0,0.00024,2]
[422305123,1778807447000,-431.47835527,0.00024405,7]
[422305081,1778807447000,-300.0,0.0002353,2]
[422305103,1778807447000,-906.0,0.00024,2]
[422305083,1778807447000,-500.0,0.00023611,2]
[422305061,1778807447000,-159.0,0.00023,30]
[422305086,1778807447000,-300.0,0.00023827,2]
[422305054,1778807447000,-159.0,0.00023,30]
[422305050,1778807447000,-159.0,0.00023,30]
[422305055,1778807447000,-159.0,0.00023,30]
[422305051,1778807447000,-159.0,0.00023,30]
[422305056,1778807447000,-159.0,0.00023,30]
[422305052,1778807447000,-159.0,0.00023,30]
[422305057,1778807447000,-159.0,0.00023,30]
[422305053,1778807447000,-159.0,0.00023,30]
[422305059,1778807447000,-159.0,0.00023,30]
[422305072,1778807447000,-152.0,0.00023082,7]
[422305070,1778807447000,-153.0,0.00023051,2]
[422305058,1778807447000,-159.0,0.00023,30]
[422305063,1778807447000,-200.0,0.00023,30]
[422305067,1778807447000,-363.0,0.00023,30]
[422305113,1778807447000,-300.0,0.00024163,2]
[422305074,1778807447000,-314.0,0.000231,2]
[422305060,1778807447000,-159.0,0.00023,30]
[422305073,1778807447000,-1000.0,0.000231,2]
[422305064,1778807447000,-200.0,0.00023,30]
[422305062,1778807447000,-159.0,0.00023,30]
[422305075,1778807447000,-200.0,0.000231,2]
[422305076,1778807447000,-155.67492755,0.000232,2]
[422305080,1778807447000,-300.0,0.0002353,2]
[422305079,1778807447000,-401.70812466,0.000235,2]
[422305077,1778807447000,-151.0,0.00023245,7]
[422305085,1778807447000,-300.0,0.00023827,2]
[422305078,1778807447000,-598.31209515,0.00023288,2]
[422305082,1778807447000,-666.0,0.0002353,2]
[422305112,1778807447000,-253.96,0.0002411,2]
[422305095,1778807447000,-500.0,0.00024,2]
[422305115,1778807447000,-431.47835527,0.00024194,2]
[422305145,1778807447000,-466.0,0.00024658,2]
[422305148,1778807447000,-1000.0,0.00024658,2]
[422305150,1778807447000,-151.0,0.00024658,2]
[422305153,1778807447000,-500.0,0.00024658,2]
[422305152,1778807447000,-598.31209515,0.00024658,2]
[422305151,1778807447000,-151.0,0.00024658,2]
[422305160,1778807447000,-431.47835527,0.00024826,14]
[422305154,1778807447000,-150.0,0.00024658,2]
[422305155,1778807447000,-431.47835527,0.00024686,7]
[422305161,1778807447000,-150.0,0.00024861,90]
[422305158,1778807447000,-150.0,0.00024794,2]
[422305157,1778807447000,-192.51175402,0.00024776,7]
[422305159,1778807447000,-1270.0,0.00024794,2]
[422305149,1778807447000,-857.14,0.00024658,2]
[422305166,1778807447000,-1120.0,0.00024948,2]
[422305165,1778807447000,-1250.0,0.00024948,2]
[422305164,1778807447000,-1250.0,0.00024948,2]
[422305172,1778807447000,-540.0,0.00025,2]
[422305162,1778807447000,-207.46847383,0.00024861,90]
[422305163,1778807447000,-431.47835527,0.00024896,14]
[422305167,1778807447000,-431.47835527,0.00024967,14]
[422305170,1778807447000,-465.49106548,0.00025,60]
[422305168,1778807447000,-1128.36314486,0.00025,2]
[422305171,1778807447000,-1808.00850147,0.00025,2]
[422305174,1778807447000,-3082.65079527,0.00025,2]
[422305175,1778807447000,-105610.57396544,0.00025,7]
[422305173,1778807447000,-618.67725719,0.00025,2]
[422305117,1778807447000,-431.47835527,0.00024264,2]
[422305169,1778807447000,-210.17904466,0.00025,2]
[422305144,1778807447000,-653.0,0.00024658,2]
[422305156,1778807447000,-431.47835527,0.00024756,7]
[422305143,1778807447000,-747.0,0.00024658,2]
[422305140,1778807447000,-1000.0,0.00024658,2]
[422305114,1778807447000,-192.51175402,0.00024194,2]
[422305116,1778807447000,-2599.64318728,0.0002421,2]
[422305118,1778807447000,-1327.49,0.000243,7]
[422305121,1778807447000,-431.47835527,0.00024334,2]
[422305119,1778807447000,-500.0,0.00024319,2]
[422305120,1778807447000,-2458.5,0.00024324,2]
[422305122,1778807447000,-180.24546421,0.000244,2]
[422305126,1778807447000,-431.47835527,0.00024545,7]
[422305133,1778807447000,-302.71884531,0.00024658,2]
[422305134,1778807447000,-320.0,0.00024658,2]
[422305136,1778807447000,-981.71884531,0.00024658,2]
[422305135,1778807447000,-310.0,0.00024658,2]
[422305137,1778807447000,-857.0,0.00024658,2]
[422305124,1778807447000,-431.47835527,0.00024475,7]
[422305129,1778807447000,-152.0,0.00024648,9]
[422305125,1778807447000,-192.51175402,0.00024485,7]
[422305139,1778807447000,-612.0,0.00024658,2]
[422305138,1778807447000,-207.28115469,0.00024658,2]
[422305146,1778807447000,-365.71884531,0.00024658,2]
[422305142,1778807447000,-624.0,0.00024658,2]
[422305147,1778807447000,-319.0,0.00024658,2]
[422305141,1778807447000,-874.0,0.00024658,2]
[422305127,1778807447000,-838.0,0.00024565,10]
[422305132,1778807447000,-1368.0,0.00024658,2]
[422305131,1778807447000,-390.0,0.00024658,2]
[422305130,1778807447000,-447.28115469,0.00024658,2]
[422305128,1778807447000,-431.47835527,0.00024615,7]
[422305223,1778807448000,-150.0,0.00025311,2]
[422305218,1778807448000,-275.0,0.00025311,2]
[422305225,1778807448000,-192.979,0.00025311,2]
[422305208,1778807448000,-400.0,0.00025151,2]
[422305222,1778807448000,-174.0,0.00025311,2]
[422305219,1778807448000,-219.0,0.00025311,2]
[422305221,1778807448000,-200.0,0.00025311,2]
[422305215,1778807448000,-6052.0,0.0002519,2]
[422305217,1778807448000,-6445.64661898,0.000253,2]
[422305211,1778807448000,-431.47835527,0.00025177,14]
[422305226,1778807448000,-150.095,0.00025311,2]
[422305214,1778807448000,-3630.0,0.0002519,2]
[422305216,1778807448000,-431.47835527,0.00025248,30]
[422305220,1778807448000,-200.0,0.00025311,2]
[422305238,1778807448000,-1931.96176822,0.00025397,2]
[422305234,1778807448000,-3542.0,0.00025311,2]
[422305229,1778807448000,-150.0,0.00025311,2]
[422305232,1778807448000,-926.0,0.00025311,2]
[422305231,1778807448000,-150.0,0.00025311,2]
[422305235,1778807448000,-431.47835527,0.00025318,30]
[422305237,1778807448000,-431.47835527,0.00025388,30]
[422305239,1778807448000,-370.8,0.00025397,2]
[422305236,1778807448000,-192.51175402,0.00025358,30]
[422305228,1778807448000,-150.0,0.00025311,2]
[422305233,1778807448000,-625.0,0.00025311,2]
[422305240,1778807448000,-1436.59522057,0.00025413,2]
[422305230,1778807448000,-150.0,0.00025311,2]
[422305212,1778807448000,-165.78,0.00025178,7]
[422305224,1778807448000,-150.0,0.00025311,2]
[422305210,1778807448000,-373.0,0.00025151,2]
[422305179,1778807448000,-6445.64661898,0.00025,2]
[422305209,1778807448000,-400.0,0.00025151,2]
[422305241,1778807448000,-152.0,0.00025431,10]
[422305177,1778807448000,-5804.81379214,0.00025,2]
[422305185,1778807448000,-4198.87215205,0.00025,2]
[422305186,1778807448000,-407.0145651,0.00025,2]
[422305181,1778807448000,-721.35142774,0.00025,2]
[422305184,1778807448000,-3259.45446449,0.00025,2]
[422305178,1778807448000,-214.95940296,0.00025,7]
[422305182,1778807448000,-277.0,0.00025,2]
[422305180,1778807448000,-749.0,0.00025,30]
[422305183,1778807448000,-540.07597307,0.00025,2]
[422305176,1778807448000,-2127.06986416,0.00025,2]
[422305188,1778807448000,-286.01962833,0.00025,2]
[422305198,1778807448000,-208.3309892,0.00025,7]
[422305196,1778807448000,-530.76993048,0.00025,2]
[422305202,1778807448000,-431.47835527,0.00025107,14]
[422305200,1778807448000,-500.0,0.00025049,2]
[422305201,1778807448000,-192.51175402,0.00025067,14]
[422305190,1778807448000,-921.62383988,0.00025,2]
[422305191,1778807448000,-478.39684226,0.00025,2]
[422305193,1778807448000,-318.54203541,0.00025,2]
[422305195,1778807448000,-1961.12908863,0.00025,2]
[422305194,1778807448000,-502.72337345,0.00025,2]
[422305199,1778807448000,-431.47835527,0.00025037,14]
[422305197,1778807448000,-208.3309892,0.00025,30]
[422305204,1778807448000,-400.0,0.00025151,2]
[422305203,1778807448000,-500.0,0.00025107,2]
[422305205,1778807448000,-400.0,0.00025151,2]
[422305207,1778807448000,-400.0,0.00025151,2]
[422305206,1778807448000,-400.0,0.00025151,2]
[422305213,1778807448000,-1223.0,0.00025186,2]
[422305242,1778807448000,-431.47835527,0.00025458,30]
[422305227,1778807448000,-150.0,0.00025311,2]
[422305250,1778807448000,-431.47835527,0.00025599,30]
[422305277,1778807448000,-724.99268,0.00026,2]
[422305270,1778807448000,-160.0,0.00026,30]
[422305292,1778807448000,-440.801872,0.00026,2]
[422305282,1778807448000,-1021.846359,0.00026,2]
[422305289,1778807448000,-151.0,0.00026,2]
[422305291,1778807448000,-228.688224,0.00026,2]
[422305290,1778807448000,-440.801872,0.00026,2]
[422305285,1778807448000,-151.0,0.00026,2]
[422305281,1778807448000,-1021.846359,0.00026,2]
[422305279,1778807448000,-724.99268,0.00026,2]
[422305283,1778807448000,-1021.846359,0.00026,2]
[422305280,1778807448000,-724.99268,0.00026,2]
[422305286,1778807448000,-440.801872,0.00026,2]
[422305288,1778807448000,-151.0,0.00026,2]
[422305287,1778807448000,-151.0,0.00026,2]
[422305294,1778807448000,-151.0,0.00026,2]
[422305306,1778807448000,-598.31209515,0.00026027,2]
[422305305,1778807448000,-431.47835527,0.0002602,60]
[422305304,1778807448000,-151.62967,0.00026,2]
[422305295,1778807448000,-151.0,0.00026,2]
[422305293,1778807448000,-440.801872,0.00026,2]
[422305296,1778807448000,-151.0,0.00026,2]
[422305298,1778807448000,-151.0,0.00026,2]
[422305302,1778807448000,-151.0,0.00026,2]
[422305297,1778807448000,-151.0,0.00026,2]
[422305299,1778807448000,-151.62967,0.00026,2]
[422305303,1778807448000,-168.358266,0.00026,2]
[422305301,1778807448000,-151.62967,0.00026,2]
[422305243,1778807448000,-6445.64661898,0.000255,2]
[422305278,1778807448000,-724.99268,0.00026,2]
[422305273,1778807448000,-6445.64661898,0.00026,2]
[422305284,1778807448000,-1021.846359,0.00026,2]
[422305274,1778807448000,-550.0,0.00026,2]
[422305272,1778807448000,-219.24301899,0.00026,2]
[422305251,1778807448000,-601.84,0.00025644,2]
[422305244,1778807448000,-151.0,0.000255,2]
[422305248,1778807448000,-786.0,0.00025555,10]
[422305245,1778807448000,-151.0,0.000255,2]
[422305246,1778807448000,-151.0,0.000255,2]
[422305247,1778807448000,-431.47835527,0.00025529,30]
[422305252,1778807448000,-192.51175402,0.00025649,60]
[422305253,1778807448000,-668.65185757,0.00025666,2]
[422305254,1778807448000,-775.47832561,0.00025666,2]
[422305260,1778807448000,-214.95940296,0.000258,7]
[422305255,1778807448000,-431.47835527,0.00025669,60]
[422305262,1778807448000,-500.0,0.000258,2]
[422305263,1778807448000,-431.47835527,0.0002581,60]
[422305257,1778807448000,-6618.0,0.000257,7]
[422305249,1778807448000,-150.0,0.00025565,2]
[422305256,1778807448000,-1327.49,0.000257,7]
[422305261,1778807448000,-6445.64661898,0.000258,2]
[422305271,1778807448000,-4580.81237175,0.00026,2]
[422305275,1778807448000,-1001.9,0.00026,2]
[422305266,1778807448000,-40378.48120981,0.0002589,5]
[422305269,1778807448000,-608.54956322,0.0002599,2]
[422305276,1778807448000,-6618.0,0.00026,7]
[422305268,1778807448000,-431.47835527,0.0002595,60]
[422305267,1778807448000,-192.51175402,0.0002594,60]
[422305259,1778807448000,-8248.76,0.00025746,7]
[422305258,1778807448000,-431.47835527,0.00025739,60]
[422305264,1778807448000,-171.33427658,0.00025864,18]
[422305300,1778807448000,-151.62967,0.00026,2]
[422305265,1778807448000,-431.47835527,0.0002588,60]
[422305349,1778807449000,-557.56,0.00026142,7]
[422305351,1778807449000,-1297.79,0.00026142,7]
[422305348,1778807449000,-556.28,0.00026142,7]
[422305350,1778807449000,-1337.32,0.00026142,7]
[422305345,1778807449000,-1337.83,0.00026142,7]
[422305358,1778807449000,-300.0,0.00026147,2]
[422305343,1778807449000,-150.0,0.00026123,7]
[422305347,1778807449000,-611.12,0.00026142,7]
[422305341,1778807449000,-1297.79,0.00026113,2]
[422305339,1778807449000,-557.56,0.00026113,2]
[422305344,1778807449000,-230.42702134,0.00026123,2]
[422305353,1778807449000,-277.0,0.00026147,2]
[422305357,1778807449000,-300.0,0.00026147,2]
[422305355,1778807449000,-300.0,0.00026147,2]
[422305361,1778807449000,-300.0,0.00026147,2]
[422305346,1778807449000,-1298.28,0.00026142,7]
[422305352,1778807449000,-654.49,0.00026142,7]
[422305354,1778807449000,-300.0,0.00026147,2]
[422305359,1778807449000,-300.0,0.00026147,2]
[422305362,1778807449000,-256.0,0.00026147,2]
[422305360,1778807449000,-300.0,0.00026147,2]
[422305363,1778807449000,-1337.83,0.00026171,7]
[422305367,1778807449000,-557.56,0.00026171,30]
[422305365,1778807449000,-611.12,0.00026171,7]
[422305364,1778807449000,-1298.28,0.00026171,7]
[422305371,1778807449000,-1337.83,0.000262,2]
[422305370,1778807449000,-654.49,0.00026171,7]
[422305342,1778807449000,-654.49,0.00026113,2]
[422305356,1778807449000,-300.0,0.00026147,2]
[422305340,1778807449000,-1337.32,0.00026113,2]
[422305307,1778807449000,-270.17672,0.00026027,2]
[422305334,1778807449000,-654.49,0.00026084,2]
[422305309,1778807449000,-1298.28,0.00026027,2]
[422305310,1778807449000,-611.12,0.00026027,2]
[422305312,1778807449000,-557.56,0.00026027,2]
[422305311,1778807449000,-556.28,0.00026027,2]
[422305308,1778807449000,-1337.83,0.00026027,2]
[422305314,1778807449000,-1297.79,0.00026027,2]
[422305315,1778807449000,-654.49,0.00026027,2]
[422305320,1778807449000,-556.28,0.00026055,7]
[422305316,1778807449000,-500.0,0.00026028,2]
[422305313,1778807449000,-1337.32,0.00026027,2]
[422305317,1778807449000,-1337.83,0.00026055,7]
[422305319,1778807449000,-611.12,0.00026055,7]
[422305318,1778807449000,-1298.28,0.00026055,7]